Cogmind - Beta 16 --- EXPLORER MODE // 2025.11.11 @ 09:53:01 Player: Goose Result: Destroyed by EX-DEC with AWS/EX-DEC Performance ------------- Evolutions (0) 0 Regions Visited (3) 600 Robots Destroyed (15) 75 Value Destroyed (399) 399 Prototype IDs (1) 20 Alien Tech Used (0) 0 Bonus (0) 0 TOTAL SCORE: 1094 Bonus ------- None Cogmind --------- Core Integrity 0/250 Matter 244/300 Energy 248/250 System Corruption 7% Temperature Warm (151) Movement Core (300) Ox5 Location -10/Exiles Parts ------- > --- POWER (1) -------- Ion Engine > --- PROPULSION (2) --- (None) > --- UTILITY (3) ------ Medium Storage Unit Targeting Computer > --- WEAPON (2) ------- Assault Rifle > --- INVENTORY (10) --- Aluminum Leg Aluminum Leg Heat Sink Medium Matter Pod (100) Sensor Array Propulsion Shielding EM Pulse Gun Peak State ------------ > --- POWER ------------ Ion Engine > --- PROPULSION ------- Light Treads Light Treads > --- UTILITY ---------- Medium Storage Unit Experimental Sensor Array Targeting Computer > --- WEAPON ----------- EM Pulse Gun Particle Gun > --- INVENTORY -------- Light Nuclear Core Aluminum Leg Aluminum Leg Heat Sink Sensor Array Propulsion Shielding Light Armor Plating Assault Rifle Grenade Launcher Mining Laser [Rating: 18] Favorites ----------- Power Ion Engine Engine Ion Engine Propulsion Light Treads Treads Light Treads Leg Aluminum Leg Utility Targeting Computer Device Sensor Array Storage Medium Storage Unit Processor Targeting Computer Protection Light Armor Plating Weapon Particle Gun Energy Gun Particle Gun Ballistic Gun Assault Rifle Launcher Grenade Launcher Special Weapon Mining Laser Build | -11 -10 -10 -10 ------- Run | Yrd Mat Min Exi Slots Evolved 1 | . 1 . . Power . | . . . . Propulsion . | . . . . Utility 1 | . 1 . . Weapon . | . . . . Parts Attached 21 | 9 7 3 2 Power 3 | 2 1 . . Engine 3 | 2 1 . . Core . | . . . . Reactor . | . . . . Propulsion 6 | 2 3 1 . Treads 3 | . 2 1 . Leg 3 | 2 1 . . Wheel . | . . . . Hover . | . . . . Flight . | . . . . Utility 5 | 2 2 1 . Device 2 | . 1 1 . Storage 1 | 1 . . . Processor 1 | 1 . . . Hackware . | . . . . Protection 1 | . 1 . . Artifact . | . . . . Weapon 7 | 3 1 1 2 Energy Gun 2 | 1 1 . . Energy Cannon . | . . . . Ballistic Gun 3 | 2 . 1 . Ballistic Cannon . | . . . . Launcher 1 | . . . 1 Special Weapon 1 | . . . 1 Impact Weapon . | . . . . Slashing Weapon . | . . . . Piercing Weapon . | . . . . Special Melee Weapon . | . . . . Unidentified Prototypes 1 | . . 1 . Parts Lost 6 | . . . 6 Power . | . . . . Propulsion 2 | . . . 2 Utility 1 | . . . 1 Weapon 3 | . . . 3 Highest Loss Streak 6 | . . . 6 To Critical Strikes . | . . . . Average Backups 9 | 3 9 10 9 Power . | . 1 1 . Propulsion 2 | . 2 2 2 Utility 3 | 1 2 4 4 Weapon 2 | . 2 3 2 Tool/Special . | . . . . Unused Backups 8 | . 1 . 7 Power 2 | . . . 2 Propulsion 2 | . . . 2 Utility 3 | . . . 3 Weapon 1 | . 1 . . Tool/Special . | . . . . Average Slot Usage (%) 99 | . 99 100 99 Engine 12 | . 12 12 12 Treads 20 | . 12 25 24 Leg 4 | . 11 . . Device 6 | . 11 7 . Storage 12 | . 12 12 12 Processor 12 | . 12 12 12 Protection 5 | . . 4 11 Energy Gun 15 | . 14 20 11 Ballistic Gun 7 | . 10 4 9 Peak Build Rating 18 | 7 10 18 10 Average Rating 9 | 5 9 10 9 On Entrance 6 | . 7 10 10 Avg Prop Armor Cover (%) . | . . . . Naked Turns . | . . . . Heaviest Build 24 | 19 23 23 24 Greatest Support 40 | 20 40 40 40 Greatest Overweight (x) . | . . . . Average Overweight (x) . | . . . . Largest Inventory Capacity 10 | 10 10 10 10 Average Capacity 9 | 8 10 10 10 Most Carried 10 | 7 10 10 10 Average Carried 9 | 3 9 9 9 Final Capacity 10 | 10 10 10 10 Final Carried 10 | 7 10 10 7 Class Distribution -------------------- 100% | Hacker-Mutant Dominant Class ---------------- Hacker-Mutant | -10/Materials Hacker-Mutant | -10/Mines Hacker-Mutant | -10/Exiles Resources | -11 -10 -10 -10 ----------- Run | Yrd Mat Min Exi Matter Collected 626 | 248 302 76 . Remotely . | . . . . Salvage Created 459 | . 405 30 24 Parts 41 | . 27 1 13 Haulers Intercepted . | . . . . Recyclers Shooed . | . . . . Parts Field Recycled . | . . . . Retrieved Matter . | . . . . Parts Self-Destructed . | . . . . Prevented . | . . . . Parts Restored . | . . . . Kills | -11 -10 -10 -10 ------- Run | Yrd Mat Min Exi Combat Hostiles Destroyed 14 | . 10 2 2 Guns 11 | . 9 2 . AOE 3 | . 1 . 2 Classes Destroyed 4 | . 3 . 1 Watcher 1 | . 1 . . Swarmer 4 | . 2 2 . Grunt 8 | . 8 . . Assembled 2 | . . . 2 Best Kill Streak 4 | . 2 2 4 Combat Bots Only 2 | . 2 2 2 Max Kills in Single Turn 2 | . 1 1 2 Gunslinging . | . . . . Exploded 1 | . 1 . 1 Melee . | . . . . Uniques/NPCs Destroyed 2 | . . . 2 EX-HEX (-10/Exiles) EX-BIN (-10/Exiles) Combat | -11 -10 -10 -10 -------- Run | Yrd Mat Min Exi Hostile Shots Fired 133 | . 30 4 99 Missed 26 | . 6 2 18 Hits 107 | . 24 2 81 Melee 19 | . . . 19 Projectile 88 | . 24 2 62 Critical Strikes 3 | . . . 3 Part Disruptions 1 | . . . 1 Damage Taken 1119 | . 190 10 919 Core 257 | . 29 . 228 Absorbed by Shields . | . . . . Ignored by Resistances 677 | . 121 7 549 Core Remaining (%) 100 | 100 . . . Volleys Fired 47 | . 23 3 21 Largest 2 | . 2 2 2 Hottest 165 | . 105 105 165 Shots Fired 87 | . 46 6 35 Gun 72 | . 46 6 20 Cannon . | . . . . Launcher 5 | . . . 5 Special 10 | . . . 10 Kinetic 20 | . 16 2 2 Thermal 40 | . 9 3 28 Explosive 5 | . . . 5 Electromagnetic 22 | . 21 1 . Robot Hit Streak 19 | . 19 4 19 Robot Miss Streak 1 | . 1 . . Penetration Max . | . . . . Secondary Targets 1 | . 1 . . Max Gunslinging Chain 1 | . 1 . . Shots Hit Robots 52 | . 34 3 15 Core Hits 42 | . 21 2 19 Critical Kills . | . . . . Critical Parts Destroyed . | . . . . Critical Strikes 1 | . . . 1 Burn 1 | . . . 1 Melee Attacks . | . . . . Impact . | . . . . Slashing . | . . . . Piercing . | . . . . Sneak Attacks . | . . . . Combat Hostiles . | . . . . Follow-up Attacks . | . . . . Damage Inflicted 1202 | . 586 36 580 Guns 645 | . 461 36 148 Cannons . | . . . . Explosions 555 | . 123 . 432 Melee . | . . . . Ramming 2 | . 2 . . Kinetic 179 | . 131 22 26 Thermal 248 | . 112 14 122 Explosive 432 | . . . 432 Electromagnetic 341 | . 341 . . Impact . | . . . . Slashing . | . . . . Piercing . | . . . . Highest Corruption 7 | . . . 7 Average Corruption 4 | . . . 4 Corruption Purged . | . . . . Corruption Blocked . | . . . . Overload Shots . | . . . . Overflow Damage . | . . . . Projectiles . | . . . . Explosions . | . . . . Melee . | . . . . Knockbacks . | . . . . Impact . | . . . . Kinetic . | . . . . Secondary . | . . . . Self-Inflicted Damage 9 | . 9 . . Shots 1 | . 1 . . Rammed 1 | . 1 . . Targets Rammed 1 | . 1 . . Kicked . | . . . . Crushed . | . . . . Highest Temperature 383 | . 178 383 272 Average Temperature 84 | . 48 125 95 Received Heat Transfer 150 | . 150 . . Siege Activations . | . . . . Martial Activations . | . . . . Shielding Activations . | . . . . Robots Disrupted . | . . . . Combat Hostiles . | . . . . Robots Corrupted . | . . . . Combat Hostiles . | . . . . Parts Fried . | . . . . Impact Corruptions . | . . . . Robots Melted . | . . . . Combat Hostiles . | . . . . Parts Melted 2 | . . . 2 Heat Transferred 692 | . 285 37 370 Parts Sabotaged . | . . . . Parts Stolen . | . . . . Parts Stripped . | . . . . Power Chain Reactions 2 | . 2 . . Alert | -11 -10 -10 -10 ------- Run | Yrd Mat Min Exi Maximum Alert Level . | . . . . Low Security (%) 100 | 100 100 100 . Level 1 . | . . . . Level 2 . | . . . . Level 3 . | . . . . Level 4 . | . . . . Level 5 . | . . . . High Security . | . . . . Max Security . | . . . . Peak Influence 61 | . 61 50 . Initial 1 | . . 1 . Average 6 | . 10 2 . Influence Increases 411 | . 361 50 . Destroy 0b10 Robot/C 240 | . 200 40 . Destroy 0b10 Robot/NC 5 | . 5 . . Destroy Leader 62 | . 52 10 . Successful Hack 24 | . 24 . . Select Force Hacks 30 | . 30 . . Disable Machine 12 | . 12 . . Destroy Structure 8 | . 8 . . Lose Combat Pursuer 30 | . 30 . . Influence Decreases 411 | . 356 55 . Entered New Map 4 | . . 4 . Time Decay 407 | . 356 51 . Squads Dispatched 1 | . 1 . . Investigation 1 | . 1 . . Extermination . | . . . . Reinforcement . | . . . . Assault . | . . . . Garrison . | . . . . Intercept . | . . . . Searches Triggered . | . . . . Construction Impeded . | . . . . Haulers Reinforced . | . . . . Active Scanning Responses . | . . . . Cargo Convoy Interrupts . | . . . . Stealth | -11 -10 -10 -10 --------- Run | Yrd Mat Min Exi Distress Signals 1 | . 1 . . Communications Jammed . | . . . . Distress Signals . | . . . . Times Spotted 31 | . 17 3 11 Peak Tracking Total 13 | . 4 2 13 Tactical Retreats 4 | . 2 . 2 Traps | -11 -10 -10 -10 ------- Run | Yrd Mat Min Exi Traps Triggered . | . . . . Indirectly . | . . . . Trap Hack Attempts . | . . . . Triggered . | . . . . Disarmed . | . . . . Reprogrammed . | . . . . Reused . | . . . . Traps Extracted . | . . . . Installed . | . . . . Triggered . | . . . . Objects Rigged 4 | . 4 . . Exploded 1 | . 1 . . Machines | -11 -10 -10 -10 ---------- Run | Yrd Mat Min Exi Machines Disabled 6 | . 3 . 3 Max in Single Turn 2 | . 2 . 1 Machines Repaired . | . . . . Machines Dismantled . | . . . . Machines Sabotaged . | . . . . Overloaded Fab Kills . | . . . . Hacking | -11 -10 -10 -10 --------- Run | Yrd Mat Min Exi Machines Accessed 9 | . 5 . 4 Terminals 4 | . 4 . . Fabricators . | . . . . Repair Stations . | . . . . Recycling Units 1 | . 1 . . Scanalyzers . | . . . . Garrison Access . | . . . . Total Hacks 61 | . 12 . 49 Successful 56 | . 7 . 49 Failed 5 | . 5 . . Catastrophic . | . . . . Database Lockouts . | . . . . Manual 12 | . 12 . . Terminals 10 | . 10 . . Fabricators . | . . . . Repair Stations . | . . . . Recycling Units 2 | . 2 . . Scanalyzers . | . . . . Garrison Access . | . . . . Terminal Hacks 52 | . 3 . 49 Record 49 | . . . 49 Branch Access Points 2 | . 2 . . Terminal Index 1 | . 1 . . Fabricator Hacks . | . . . . Repair Station Hacks . | . . . . Recycling Unit Hacks . | . . . . Scanalyzer . | . . . . Garrison Access Hacks . | . . . . Unauthorized Hacks 4 | . 4 . . Terminals 2 | . 2 . . Assimilate 1 | . 1 . . Detonate 1 | . 1 . . Fabricators . | . . . . Repair Stations . | . . . . Recycling Units 2 | . 2 . . Mask 1 | . 1 . . Tunnel 1 | . 1 . . Scanalyzers . | . . . . Garrison Access . | . . . . Data Cores Recovered . | . . . . Used . | . . . . Hacking Detections 4 | . 4 . . Full Trace Events . | . . . . Feedback Events . | . . . . Feedback Blocked . | . . . . Robot Schematics Acquired . | . . . . Robots Built . | . . . . Authchips . | . . . . Time . | . . . . Total Robot Build Rating . | . . . . Part Schematics Acquired . | . . . . Parts Built . | . . . . Authchips . | . . . . Time . | . . . . Total Part Build Rating . | . . . . Part Studies Acquired . | . . . . Parts Repaired . | . . . . Time . | . . . . Parts Recycled . | . . . . Recycled Matter . | . . . . Retrieved Matter . | . . . . Retrieved Components . | . . . . Parts Scanalyzed . | . . . . Part Schematics Acquired . | . . . . Parts Damaged . | . . . . Bothacking | -11 -10 -10 -10 ------------ Run | Yrd Mat Min Exi Used RIF Installer . | . . . . Robots Hacked . | . . . . Non-combat . | . . . . Combat . | . . . . Robot Hacks Applied . | . . . . Relay Couplers Released . | . . . . Fabnet Peak Effective % . | . . . . Robots Rewired . | . . . . Allies Hacked . | . . . . Hacks Repelled . | . . . . Allies | -11 -10 -10 -10 -------- Run | Yrd Mat Min Exi Total Allies . | . . . . Largest Group . | . . . . Highest-Rated Group . | . . . . Highest-Rated Ally . | . . . . Total Orders . | . . . . Ally Attacks . | . . . . Total Damage . | . . . . Kills . | . . . . Allies Corrupted . | . . . . Allies Melted . | . . . . Intel | -11 -10 -10 -10 ------- Run | Yrd Mat Min Exi Active Infowar (turns) 1537 | . 958 579 . Sensors 1537 | . 958 579 . Robot Analysis Total . | . . . . Derelict Logs Recovered 1 | . . 1 . Drone Launches . | . . . . Drone Recoveries . | . . . . Exploration | -11 -10 -10 -10 ------------- Run | Yrd Mat Min Exi Turns Passed 3041 | 90 1035 910 1006 Spaces Moved 1736 | 62 541 555 578 Core 4 | 4 . . . Treads 1397 | . 264 555 578 Legs 335 | 58 277 . . Wheels . | . . . . Hover . | . . . . Flight . | . . . . Fastest Speed 50 | 50 120 160 160 Average Speed 152 | 115 139 160 160 Slowest Speed 160 | 120 160 160 160 Overloaded Moves . | . . . . Propulsion Burnouts . | . . . . Robots Hopped . | . . . . Potential Cave-ins . | . . . . Cave-ins Triggered . | . . . . Exploration Rate (%) 61 | 5 52 99 91 Regions Visited 3 Branch Regions 2 Pre-discovered Areas 3 | . 1 1 1 Known Exits Taken 3 | 1 1 1 . Unknown Exits Taken . | . . . . Scrap Searched 2 | . . 2 . Spaces Dug 5 | . . . 5 Terrain Destroyed 24 | . 5 . 19 Melee . | . . . . Projectile 5 | . . . 5 AOE 19 | . 5 . 14 Terrain Rammed . | . . . . Walls Destroyed . | . . . . Machines Disabled . | . . . . Actions | -11 -10 -10 -10 --------- Run | Yrd Mat Min Exi Total 2034 | 76 782 571 605 Wait 187 | . 183 4 . Move 1733 | 61 540 554 578 Hop . | . . . . Pick Up 20 | 6 11 2 1 Fast Attach 8 | 7 1 . . Attach 5 | . 2 1 2 Detach 2 | . 2 . . Swap 16 | 2 9 4 1 Drop 15 | . 10 3 2 Fire 47 | . 23 3 21 Melee . | . . . . Ram . | . . . . Kick . | . . . . Crush 1 | . 1 . . Escape Stasis . | . . . . Rewire . | . . . . Trap . | . . . . Miscellaneous . | . . . . Route ------- -11/Scrapyard -10/Materials (discovered 2 exits: *Min x2) -10/Mines (discovered 3 exits: *Mat x2 / *Exi) -10/Exiles (discovered 2 exits: *Min x2) History --------- Turn | Location | Event 5 | -11/Scrapyard | Identified exit to Materials 5 | -11/Scrapyard | Discovered exit to Materials (range 15) 91 | -11/Scrapyard | Entered Materials 91 | -10/Materials | Evolved 1 slot: Utility x1 191 | -10/Materials | Identified exit to Mines 317 | -10/Materials | Build established: Hacker-Mutant 1126 | -10/Materials | Entered Mines 1149 | -10/Mines | Found a damaged Exp. Sensor Array with a note attached 1153 | -10/Mines | Found Prototype Device 1154 | -10/Mines | Identified Exp. Sensor Array 1377 | -10/Mines | Identified exit to Materials 1377 | -10/Mines | Discovered exit to Materials (range 12) 1554 | -10/Mines | Discovered exit to Materials (range 12) 1804 | -10/Mines | Deemed a non-threat by the Exiles lab entrance 1804 | -10/Mines | Identified exit to Exiles 1804 | -10/Mines | Discovered exit to Exiles (range 5) 2036 | -10/Mines | Entered Exiles 2103 | -10/Exiles | Met 8R-AWN 2141 | -10/Exiles | Identified exit to Mines 2141 | -10/Exiles | Discovered exit to Mines (range 14) 2209 | -10/Exiles | Met EX-HEX 2260 | -10/Exiles | Met EX-BIN 2453 | -10/Exiles | Met EX-DEC 2469 | -10/Exiles | Learned location of Zion (-6) 2543 | -10/Exiles | Discovered exit to Mines (range 10) 2682 | -10/Exiles | Visited The Gauntlet 2990 | -10/Exiles | Attacked by the Exiles 3022 | -10/Exiles | Destroyed EX-HEX 3033 | -10/Exiles | Destroyed EX-BIN 3034 | -10/Exiles | Core integrity fell below 50% 3041 | -10/Exiles | Core integrity fell below 20% 3042 | -10/Exiles | Destroyed by EX-DEC with AWS/EX-DEC Last Messages --------------- 02990_ EXILES: Hostile robot within lab perimeter. Defensive protocols time, folks! 02991_ Testing Apparatus damaged. 03014_ Machine disabled. 03016_ EX-DEC suffers critical hit (Burn). 03018_ Mining Laser destroyed. 03019_ Machine disabled. 03019_ as-91596 destroyed. 03020_ as-00598 destroyed. 03022_ EX-BIN: "I just want to science!" 03022_ as-76945 destroyed. 03022_ EX Chip 1 melted. 03022_ EX-HEX destroyed. 03028_ Lgt. Armor Plating destroyed. 03033_ Lgt. Treads destroyed. 03033_ EX-BIN: "You can't kill me, my evil twin will get revenge!" 03033_ EX-BIN destroyed. 03033_ Lgt. Treads destroyed. 03034_ Grenade Launcher destroyed. 03038_ Particle Gun destroyed. Map ----- +----------------------------------------------------+ | ?????????#"""" ""????#?""" " " ""#" | | ?????????#"" ""#????????###""" """## | | ?????????#" """"##??????????###""""#?# | | ?????????#""" """#?????????????###????? | | ?????????## ""##????????????????????? | | ??????????#"" """##?????????????????????? | | ??????????##""" ##??????????????????????? | | ???????????##"""" ##???????????????????????? | | ????????????### #????????????????????????? | | ??????????????##### ##????????????????????????? | | ??????????????????## #?????????????????????????? | | ???????????????????# #?????????????????????????? | | ???????????????????# #?????????????????????????? | | ???????????????????# #?????????????????????????? | | ######???####??????# #?????????????????????????? | | """""#??#""""""????# #?????????????????????????? | | """""#???"""""""#??# #?????????????????????????? | | """ "#??#" """"#### a#?????????????????????????? | | " """#???"" """# #????????????????????????? | | ""#???"" ""# ????????????????????????? | | """"#######"""### ! ############????????????? | | """""""" """ ! """" #"""""#????????????? | | """"""" c ! % ";"" ""#????????????? | | " ""#????????????? | | a a " "#????????????? | | @a " """#????????????? | | "" z #"" ""#????????????? | | " """"" " """" ""#"""""#????????????? | | """###""###"""########"""############????????????? | | ""#""#"" ""????"" ""??????????????????????? | | " ""#""#""" ""???#"" """#?????????????????????? | | """"""""#" " "#??#"""""""#?????????????????????? | | """""#"?#"""""""#???"" """"??????????????????????? | | """""#???"""""""#????"""""???????????????????????? | | #"####????#####???????##?????????????????????????? | | ?"???????????????????????????????????????????????? | | ?????????????????????????????????????????????????? | | ?????????????????????????????????????????????????? | | ?????????????????????????????????????????????????? | | | | | | | | | | | | | | | | | | | | | | | +----------------------------------------------------+ Best States ------------- Heat Dissipation 25 Energy Generation 10 Energy Capacity 250 Matter Stores 300 Matter Capacity 300 Sight Range 16 Robot Scan Range 14 Terrain Scan Density 10 Armor Coverage 150 Resistance: KI 35 Resistance: TH 35 Resistance: EX 35 Resistance: EM 35 Resistance: I 35 Resistance: S 35 Resistance: P 35 Evasion (%) 55 Targeting Accuracy 5 Recoil Reduction 2 Offensive Hacking 20 Item Schematics ----------------- None Robot Schematics ------------------ None Fabricated ------------ Nothing Repaired ---------- Nothing Studied --------- None Alien Tech Used ----------------- None Achievements -------------- None Challenges ------------ None Game ------ Seed WeaponMultireflexProtomatter Manual? 0 Play Time 00:32:17 Cumulative 263.3 hours Start 2025.11.10 @ 16:29:45 End 2025.11.11 @ 09:53:01 Sessions 3 Manual Loads 0 Difficulty Explorer Special Mode None Game No. 13 Rogue 5 Adventurer 0 Explorer 8 Win Type - Total 0 Types 0/0/0/0/0/0/0/0/0/0 Lore% 30 Gallery% 39 Achievement% 28 Wizard Run 0 Options --------- Layout 0 ASCII 0 Keyboard 0 Movement Mouse Keybinds 0 Fullscreen 2 Font 18/X11 Map View 38x25 Zoom Use 72% Tactical HUD 1 Map Filters NONE Filters NONE Steam 1 RUN: 29cd5fc7-902d-46f5-8a30-ba1f612addad